[Event "NJSK 2023 Jeugd B"]
[Site "Almelo, Netherlands"]
[Date "2023.05.05"]
[Round "6.6"]
[White "Guillaumond, Matthieu"]
[Black "Niemeijer, Leon"]
[Result "1-0"]
[TimeControl "90min/40moves + 30min + 30sec/move"]
[WhiteElo "2010"]
[BlackElo "1903"]

1. e4 {[%clk 01:30:58]} {[%emt 00:00:03]} e6 {[%clk 01:30:55]} {[%emt
00:00:05]} 2. d4 {[%clk 01:31:24]} {[%emt 00:00:04]} d5 {[%clk 01:31:22]}
{[%emt 00:00:03]} 3. Nc3 {[%clk 01:31:49]} {[%emt 00:00:05]} Nf6 {[%clk
01:31:48]} {[%emt 00:00:04]} 4. e5 {[%clk 01:32:14]} {[%emt 00:00:06]} Nfd7
{[%clk 01:32:15]} {[%emt 00:00:01]} 5. f4 {[%clk 01:32:39]} {[%emt 00:00:05]}
c5 {[%clk 01:32:42]} {[%emt 00:00:04]} 6. Nf3 {[%clk 01:33:03]} {[%emt
00:00:04]} Nc6 {[%clk 01:33:09]} {[%emt 00:00:03]} 7. Be3 {[%clk 01:33:27]}
{[%emt 00:00:06]} cxd4 {[%clk 01:33:33]} {[%emt 00:00:06]} 8. Nxd4 {[%clk
01:33:53]} {[%emt 00:00:05]} Qb6 {[%clk 01:33:49]} {[%emt 00:00:14]} 9. Qd2
{[%clk 01:34:15]} {[%emt 00:00:08]} Qxb2 {[%clk 01:32:32]} {[%emt 00:01:47]} 10.
Rb1 {[%clk 01:34:38]} {[%emt 00:00:08]} Qa3 {[%clk 01:32:59]} {[%emt 00:00:03]}
11. Bb5 {[%clk 01:34:58]} {[%emt 00:00:09]} Bb4 {[%clk 01:31:37]} {[%emt
00:01:51]} 12. Rb3 {[%clk 01:33:12]} {[%emt 00:02:16]} Qa5 {[%clk 01:22:58]}
{[%emt 00:09:09]} 13. Bxc6 {[%clk 01:25:44]} {[%emt 00:07:59]} bxc6 {[%clk
01:23:10]} {[%emt 00:00:19]} 14. Nxc6 {[%clk 01:25:54]} {[%emt 00:00:20]} Bxc3
{[%clk 01:22:42]} {[%emt 00:00:58]} 15. Nxa5 {[%clk 01:25:32]} {[%emt
00:00:51]} Bxd2+ {[%clk 01:23:01]} {[%emt 00:00:11]} 16. Kxd2 {[%clk 01:24:23]}
{[%emt 00:01:39]} f6 {[%clk 00:58:37]} {[%emt 00:24:55]} 17. Bd4 {[%clk
01:18:15]} {[%emt 00:06:37]} fxe5 {[%clk 00:52:50]} {[%emt 00:06:18]} 18. fxe5
{[%clk 01:18:15]} {[%emt 00:00:29]} O-O {[%clk 00:53:08]} {[%emt 00:00:13]} 19.
Rf3 {[%clk 00:59:43]} {[%emt 00:19:01]} Rxf3 {[%clk 00:25:45]} {[%emt
00:27:52]} 20. gxf3 {[%clk 01:00:02]} {[%emt 00:00:11]} Nb6 {[%clk 00:26:09]}
{[%emt 00:00:07]} 21. Rb1 {[%clk 00:54:21]} {[%emt 00:06:10]} Rb8 {[%clk
00:18:20]} {[%emt 00:08:19]} 22. Bxb6 {[%clk 00:49:24]} {[%emt 00:05:27]} Rxb6
{[%clk 00:18:50]} {[%emt 00:00:01]} 23. Rxb6 {[%clk 00:49:19]} {[%emt
00:00:35]} axb6 {[%clk 00:19:19]} {[%emt 00:00:01]} 24. Nc6 {[%clk 00:48:58]}
{[%emt 00:00:51]} Kf7 {[%clk 00:12:35]} {[%emt 00:07:14]} 25. Kc3 {[%clk
00:48:27]} {[%emt 00:01:01]} Bd7 {[%clk 00:07:44]} {[%emt 00:05:21]} 26. Nd4
{[%clk 00:41:20]} {[%emt 00:07:37]} g5 {[%clk 00:04:51]} {[%emt 00:03:24]} 27.
Kd3 {[%clk 00:36:44]} {[%emt 00:05:05]} Kg6 {[%clk 00:01:57]} {[%emt 00:03:24]}
28. Ke3 {[%clk 00:33:32]} {[%emt 00:03:42]} Kh5 {[%clk 00:00:53]} {[%emt
00:01:34]} 29. Kf2 {[%clk 00:32:17]} {[%emt 00:01:43]} Kh4 {[%clk 00:01:00]}
{[%emt 00:00:26]} 30. Kg2 {[%clk 00:32:17]} {[%emt 00:00:29]} h6 {[%clk
00:00:47]} {[%emt 00:00:43]} 31. c3 {[%clk 00:31:06]} {[%emt 00:01:40]} Kh5
{[%clk 00:00:35]} {[%emt 00:00:43]} 32. Kg3 {[%clk 00:30:57]} {[%emt 00:00:38]}
Kg6 {[%clk 00:00:51]} {[%emt 00:00:15]} 33. h4 {[%clk 00:28:58]} {[%emt
00:02:28]} Kh5 {[%clk 00:00:38]} {[%emt 00:00:44]} 34. hxg5 {[%clk 00:29:14]}
{[%emt 00:00:13]} hxg5 {[%clk 00:00:59]} {[%emt 00:00:09]} 35. a3 {[%clk
00:27:58]} {[%emt 00:01:46]} b5 {[%clk 00:00:47]} {[%emt 00:00:43]} 36. Kh3
{[%clk 00:28:02]} {[%emt 00:00:25]} Kh6 {[%clk 00:01:04]} {[%emt 00:00:14]} 37.
Kg4 {[%clk 00:28:24]} {[%emt 00:00:07]} Kg6 {[%clk 00:01:18]} {[%emt 00:00:16]}
38. Ne2 {[%clk 00:24:58]} {[%emt 00:03:56]} Kh6 {[%clk 00:01:24]} {[%emt
00:00:25]} 39. Nc1 {[%clk 00:16:41]} {[%emt 00:08:46]} Be8 {[%clk 00:00:50]}
{[%emt 00:01:05]} 40. Nb3 {[%clk 00:16:40]} {[%emt 00:00:31]} Bd7 {[%clk
00:00:35]} {[%emt 00:00:46]} 41. Na5 {[%clk 00:14:41]} {[%emt 00:02:28]} Kg6
{[%clk 00:20:57]} {[%emt 00:10:07]} 42. Nb7 {[%clk 00:43:08]} {[%emt 00:02:03]}
Bc8 {[%clk 00:21:26]} {[%emt 00:00:01]} 43. Nd6 {[%clk 00:40:56]} {[%emt
00:02:43]} Bd7 {[%clk 00:21:55]} {[%emt 00:00:01]} 44. f4 {[%clk 00:40:29]}
{[%emt 00:00:56]} gxf4 {[%clk 00:22:18]} {[%emt 00:00:07]} 45. Kxf4 {[%clk
00:40:58]} {[%emt 00:00:02]} Bc6 {[%clk 00:18:03]} {[%emt 00:04:45]} 46. Ke3
{[%clk 00:30:36]} {[%emt 00:10:52]} Kg5 {[%clk 00:04:56]} {[%emt 00:13:37]} 47.
Nf7+ {[%clk 00:28:04]} {[%emt 00:03:01]} Kf5 {[%clk 00:05:14]} {[%emt
00:00:12]} 48. Kd4 {[%clk 00:28:19]} {[%emt 00:00:15]} Kf4 {[%clk 00:04:15]}
{[%emt 00:01:30]} 49. Kc5 {[%clk 00:23:10]} {[%emt 00:05:39]} Be8 {[%clk
00:04:38]} {[%emt 00:00:06]} 50. Nd6 {[%clk 00:23:35]} {[%emt 00:00:05]} Bd7
{[%clk 00:05:05]} {[%emt 00:00:04]} 51. Nxb5 {[%clk 00:23:21]} {[%emt
00:00:44]} Kxe5 {[%clk 00:04:22]} {[%emt 00:01:12]} 52. a4 {[%clk 00:22:49]}
{[%emt 00:01:03]} Ke4 {[%clk 00:02:57]} {[%emt 00:01:55]} 53. Kd6 {[%clk
00:22:00]} {[%emt 00:01:18]} Bc8 {[%clk 00:03:15]} {[%emt 00:00:13]} 54. Kc7
{[%clk 00:21:51]} {[%emt 00:00:39]} Ba6 {[%clk 00:03:40]} {[%emt 00:00:05]} 55.
Kb6 {[%clk 00:21:13]} {[%emt 00:01:07]} Bxb5 {[%clk 00:00:34]} {[%emt
00:03:37]} 56. Kxb5 {[%clk 00:21:22]} {[%emt 00:00:20]} Kd3 {[%clk 00:00:49]}
{[%emt 00:00:15]} 57. a5 {[%clk 00:21:37]} {[%emt 00:00:15]} Kxc3 {[%clk
00:00:41]} {[%emt 00:00:39]} 58. a6 {[%clk 00:21:53]} {[%emt 00:00:13]} d4
{[%clk 00:00:33]} {[%emt 00:00:38]} 59. a7 {[%clk 00:22:14]} {[%emt 00:00:09]}
d3 {[%clk 00:00:36]} {[%emt 00:00:28]} 60. a8=Q {[%clk 00:22:36]} {[%emt
00:00:08]} d2 {[%clk 00:00:46]} {[%emt 00:00:20]} 61. Qc6+ {[%clk 00:22:40]}
{[%emt 00:00:25]} Kb2 {[%clk 00:00:48]} {[%emt 00:00:29]} 62. Qg2 {[%clk
00:22:43]} {[%emt 00:00:27]} Kc1 {[%clk 00:00:51]} {[%emt 00:00:26]} 63. Qc6+
{[%clk 00:22:04]} {[%emt 00:01:09]} Kb2 {[%clk 00:01:12]} {[%emt 00:00:10]} 64.
Qh1 {[%clk 00:22:16]} {[%emt 00:00:16]} Kc2 {[%clk 00:01:13]} {[%emt 00:00:30]}
65. Qe4+ {[%clk 00:22:32]} {[%emt 00:00:14]} Kb2 {[%clk 00:00:36]} {[%emt
00:01:07]} 66. Qd4+ {[%clk 00:22:54]} {[%emt 00:00:08]} Kc2 {[%clk 00:00:57]}
{[%emt 00:00:09]} 67. Qc4+ {[%clk 00:23:12]} {[%emt 00:00:12]} Kb2 {[%clk
00:01:11]} {[%emt 00:00:17]} 68. Qd3 {[%clk 00:23:30]} {[%emt 00:00:11]} Kc1
{[%clk 00:01:16]} {[%emt 00:00:25]} 69. Qc3+ {[%clk 00:23:53]} {[%emt
00:00:07]} Kd1 {[%clk 00:01:38]} {[%emt 00:00:08]} 70. Kc4 {[%clk 00:24:06]}
{[%emt 00:00:17]} e5 {[%clk 00:00:48]} {[%emt 00:01:21]} 71. Kd3 {[%clk
00:24:17]} {[%emt 00:00:18]} e4+ {[%clk 00:00:35]} {[%emt 00:00:44]} 72. Ke3
{[%clk 00:24:39]} {[%emt 00:00:07]} 1-0

[Event "NJSK 2023 Jeugd B"]
[Site "Almelo, Netherlands"]
[Date "2023.05.05"]
[Round "6.7"]
[White "Snijders, Take"]
[Black "Ponomarev, Ivan"]
[Result "1/2-1/2"]
[TimeControl "90min/40moves + 30min + 30sec/move"]
[WhiteElo "1851"]
[BlackElo "1788"]

1. e4 {[%clk 01:30:58]} {[%emt 00:00:02]} c5 {[%clk 01:30:57]} {[%emt
00:00:04]} 2. Nf3 {[%clk 01:31:24]} {[%emt 00:00:04]} e6 {[%clk 01:31:24]}
{[%emt 00:00:03]} 3. d4 {[%clk 01:31:50]} {[%emt 00:00:03]} cxd4 {[%clk
01:31:52]} {[%emt 00:00:03]} 4. Nxd4 {[%clk 01:32:15]} {[%emt 00:00:08]} Nc6
{[%clk 01:32:19]} {[%emt 00:00:02]} 5. Nc3 {[%clk 01:32:36]} {[%emt 00:00:07]}
a6 {[%clk 01:32:48]} {[%emt 00:00:01]} 6. Bf4 {[%clk 01:32:56]} {[%emt
00:00:10]} d6 {[%clk 01:29:13]} {[%emt 00:04:05]} 7. Bg3 {[%clk 01:33:14]}
{[%emt 00:00:11]} Nf6 {[%clk 01:27:49]} {[%emt 00:01:55]} 8. Nxc6 {[%clk
01:33:28]} {[%emt 00:00:16]} bxc6 {[%clk 01:28:17]} {[%emt 00:00:02]} 9. e5
{[%clk 01:33:45]} {[%emt 00:00:12]} dxe5 {[%clk 01:18:17]} {[%emt 00:10:30]} 10.
Qxd8+ {[%clk 01:32:07]} {[%emt 00:02:08]} Kxd8 {[%clk 01:18:16]} {[%emt
00:00:32]} 11. O-O-O+ {[%clk 01:31:16]} {[%emt 00:01:21]} Nd5 {[%clk 01:09:14]}
{[%emt 00:09:32]} 12. Ne4 {[%clk 01:26:43]} {[%emt 00:05:03]} f5 {[%clk
01:01:02]} {[%emt 00:08:41]} 13. Ng5 {[%clk 01:24:53]} {[%emt 00:02:21]} Ke8
{[%clk 00:58:46]} {[%emt 00:02:45]} 14. Bxe5 {[%clk 01:23:26]} {[%emt
00:01:58]} Be7 {[%clk 00:57:33]} {[%emt 00:01:42]} 15. Nf3 {[%clk 01:19:23]}
{[%emt 00:04:34]} Kf7 {[%clk 00:51:51]} {[%emt 00:06:11]} 16. Be2 {[%clk
01:08:59]} {[%emt 00:10:54]} Bb7 {[%clk 00:48:17]} {[%emt 00:04:04]} 17. c4
{[%clk 01:03:32]} {[%emt 00:05:58]} Nb6 {[%clk 00:48:19]} {[%emt 00:00:28]} 18.
Bc7 {[%clk 00:57:38]} {[%emt 00:06:23]} Na4 {[%clk 00:45:50]} {[%emt 00:02:59]}
19. Ne5+ {[%clk 00:56:10]} {[%emt 00:01:59]} Kf6 {[%clk 00:37:54]} {[%emt
00:08:25]} 20. Nd7+ {[%clk 00:50:33]} {[%emt 00:06:08]} Kf7 {[%clk 00:36:12]}
{[%emt 00:02:11]} 21. Nb6 {[%clk 00:50:34]} {[%emt 00:00:29]} Nxb6 {[%clk
00:36:35]} {[%emt 00:00:07]} 22. Bxb6 {[%clk 00:51:02]} {[%emt 00:00:02]} c5
{[%clk 00:33:18]} {[%emt 00:03:47]} 23. Bxc5 {[%clk 00:40:20]} {[%emt
00:11:12]} Bxg2 {[%clk 00:26:31]} {[%emt 00:07:17]} 24. Rhg1 {[%clk 00:40:26]}
{[%emt 00:00:24]} Bxc5 {[%clk 00:26:26]} {[%emt 00:00:35]} 25. Rxg2 {[%clk
00:40:51]} {[%emt 00:00:05]} Rad8 {[%clk 00:26:46]} {[%emt 00:00:09]} 26. f3
{[%clk 00:37:11]} {[%emt 00:04:11]} h6 {[%clk 00:23:04]} {[%emt 00:04:12]} 27.
a3 {[%clk 00:35:00]} {[%emt 00:02:42]} a5 {[%clk 00:23:22]} {[%emt 00:00:11]}
28. Kc2 {[%clk 00:34:32]} {[%emt 00:00:58]} Rxd1 {[%clk 00:16:36]} {[%emt
00:07:16]} 29. Bxd1 {[%clk 00:34:42]} {[%emt 00:00:20]} Rb8 {[%clk 00:16:55]}
{[%emt 00:00:11]} 30. Rd2 {[%clk 00:30:20]} {[%emt 00:04:52]} g5 {[%clk
00:13:40]} {[%emt 00:03:45]} 31. Kc3 {[%clk 00:27:14]} {[%emt 00:03:37]} e5
{[%clk 00:11:22]} {[%emt 00:02:47]} 32. Kc2 {[%clk 00:22:28]} {[%emt 00:05:16]}
Bd4 {[%clk 00:11:33]} {[%emt 00:00:18]} 33. b3 {[%clk 00:21:43]} {[%emt
00:01:16]} Kf6 {[%clk 00:10:22]} {[%emt 00:01:41]} 34. Be2 {[%clk 00:19:25]}
{[%emt 00:02:48]} Kg6 {[%clk 00:08:14]} {[%emt 00:02:39]} 35. h3 {[%clk
00:17:56]} {[%emt 00:01:58]} h5 {[%clk 00:07:53]} {[%emt 00:00:52]} 36. Rd1
{[%clk 00:17:15]} {[%emt 00:01:11]} Kf6 {[%clk 00:03:34]} {[%emt 00:04:49]} 37.
Rd3 {[%clk 00:16:06]} {[%emt 00:01:39]} Ke6 {[%clk 00:03:16]} {[%emt 00:00:47]}
38. Rd1 {[%clk 00:14:44]} {[%emt 00:01:52]} Kd6 {[%clk 00:01:26]} {[%emt
00:02:20]} 39. Rf1 {[%clk 00:13:17]} {[%emt 00:01:57]} Ke6 {[%clk 00:00:47]}
{[%emt 00:01:08]} 40. Rd1 {[%clk 00:11:20]} {[%emt 00:02:28]} Kd6 {[%clk
00:00:47]} {[%emt 00:00:30]} 41. Rf1 {[%clk 00:10:49]} {[%emt 00:01:00]} Kc5
{[%clk 00:18:36]} {[%emt 00:12:42]} 42. Rb1 {[%clk 00:40:12]} {[%emt 00:01:07]}
Rb6 {[%clk 00:15:26]} {[%emt 00:03:40]} 43. Kd2 {[%clk 00:36:52]} {[%emt
00:03:49]} h4 {[%clk 00:09:36]} {[%emt 00:06:21]} 44. Kd3 {[%clk 00:29:27]}
{[%emt 00:07:55]} e4+ {[%clk 00:07:29]} {[%emt 00:02:36]} 45. fxe4 {[%clk
00:29:17]} {[%emt 00:00:41]} fxe4+ {[%clk 00:07:58]} {[%emt 00:00:01]} 46. Kc2
{[%clk 00:26:48]} {[%emt 00:02:59]} Be5 {[%clk 00:05:04]} {[%emt 00:03:24]} 47.
Rd1 {[%clk 00:26:19]} {[%emt 00:00:59]} Rd6 {[%clk 00:05:19]} {[%emt 00:00:15]}
48. Rxd6 {[%clk 00:24:05]} {[%emt 00:02:44]} Bxd6 {[%clk 00:05:20]} {[%emt
00:00:30]} 49. Kc3 {[%clk 00:23:46]} {[%emt 00:00:49]} Be5+ {[%clk 00:05:26]}
{[%emt 00:00:24]} 50. Kd2 {[%clk 00:23:49]} {[%emt 00:00:26]} Bd4 {[%clk
00:04:41]} {[%emt 00:01:15]} 51. b4+ {[%clk 00:24:02]} {[%emt 00:00:17]} axb4
{[%clk 00:04:51]} {[%emt 00:00:20]} 52. axb4+ {[%clk 00:24:29]} {[%emt
00:00:04]} Kxb4 {[%clk 00:05:15]} {[%emt 00:00:05]} 53. Bg4 {[%clk 00:24:33]}
{[%emt 00:00:26]} Kxc4 {[%clk 00:05:35]} {[%emt 00:00:11]} 54. Ke2 {[%clk
00:25:00]} {[%emt 00:00:02]} Kd5 {[%clk 00:05:01]} {[%emt 00:01:04]} 55. Bc8
{[%clk 00:25:21]} {[%emt 00:00:09]} Ke5 {[%clk 00:04:26]} {[%emt 00:01:05]}
1/2-1/2

[Event "NJSK 2023 Jeugd B"]
[Site "Almelo, Netherlands"]
[Date "2023.05.05"]
[Round "6.8"]
[White "Knippenberg, Hidde"]
[Black "Veraart, Jan"]
[Result "1-0"]
[TimeControl "90min/40moves + 30min + 30sec/move"]
[WhiteElo "1728"]
[BlackElo "1560"]

1. d4 {[%clk 01:30:58]} {[%emt 00:00:02]} d5 {[%clk 01:30:55]} {[%emt
00:00:05]} 2. c4 {[%clk 01:31:26]} {[%emt 00:00:02]} e6 {[%clk 01:31:22]}
{[%emt 00:00:04]} 3. Nf3 {[%clk 01:31:51]} {[%emt 00:00:04]} Nf6 {[%clk
01:31:47]} {[%emt 00:00:09]} 4. Nc3 {[%clk 01:32:14]} {[%emt 00:00:03]} c5
{[%clk 01:32:06]} {[%emt 00:00:11]} 5. cxd5 {[%clk 01:29:22]} {[%emt 00:03:22]}
exd5 {[%clk 01:32:14]} {[%emt 00:00:22]} 6. e3 {[%clk 01:29:04]} {[%emt
00:00:48]} Bg4 {[%clk 01:24:12]} {[%emt 00:08:31]} 7. Be2 {[%clk 01:29:14]}
{[%emt 00:00:21]} Nc6 {[%clk 01:24:05]} {[%emt 00:00:37]} 8. O-O {[%clk
01:29:24]} {[%emt 00:00:20]} Bd6 {[%clk 01:21:08]} {[%emt 00:03:27]} 9. dxc5
{[%clk 01:23:38]} {[%emt 00:06:16]} Bxc5 {[%clk 01:21:22]} {[%emt 00:00:16]} 10.
Nd4 {[%clk 01:17:46]} {[%emt 00:06:22]} Bd7 {[%clk 01:19:54]} {[%emt 00:01:58]}
11. Nb3 {[%clk 01:17:48]} {[%emt 00:00:28]} Bd6 {[%clk 01:04:40]} {[%emt
00:15:43]} 12. Nxd5 {[%clk 01:12:10]} {[%emt 00:06:09]} Nxd5 {[%clk 01:04:18]}
{[%emt 00:00:51]} 13. Qxd5 {[%clk 01:12:35]} {[%emt 00:00:06]} Be6 {[%clk
01:01:32]} {[%emt 00:03:16]} 14. Qe4 {[%clk 01:11:48]} {[%emt 00:01:17]} Qc7
{[%clk 00:59:52]} {[%emt 00:02:09]} 15. h4 {[%clk 01:00:50]} {[%emt 00:11:28]}
O-O-O {[%clk 00:55:49]} {[%emt 00:04:31]} 16. Nd4 {[%clk 00:54:46]} {[%emt
00:06:38]} Bd5 {[%clk 00:52:25]} {[%emt 00:03:53]} 17. Qg4+ {[%clk 00:47:51]}
{[%emt 00:07:24]} Kb8 {[%clk 00:52:45]} {[%emt 00:00:10]} 18. Nb5 {[%clk
00:46:54]} {[%emt 00:01:28]} Qe7 {[%clk 00:48:33]} {[%emt 00:04:41]} 19. Nxd6
{[%clk 00:42:18]} {[%emt 00:05:06]} Rxd6 {[%clk 00:47:56]} {[%emt 00:01:08]} 20.
e4 {[%clk 00:41:28]} {[%emt 00:01:20]} Bxe4 {[%clk 00:41:22]} {[%emt 00:07:03]}
21. Bf4 {[%clk 00:39:33]} {[%emt 00:02:26]} Ne5 {[%clk 00:41:11]} {[%emt
00:00:40]} 22. Qxg7 {[%clk 00:39:10]} {[%emt 00:00:53]} Re8 {[%clk 00:39:17]}
{[%emt 00:02:24]} 23. Bxe5 {[%clk 00:26:43]} {[%emt 00:12:58]} Qxe5 {[%clk
00:39:22]} {[%emt 00:00:25]} 24. Qxe5 {[%clk 00:27:01]} {[%emt 00:00:11]} Rxe5
{[%clk 00:39:48]} {[%emt 00:00:05]} 25. Rfe1 {[%clk 00:26:55]} {[%emt
00:00:37]} Rg6 {[%clk 00:23:54]} {[%emt 00:16:22]} 26. Bf3 {[%clk 00:17:06]}
{[%emt 00:10:20]} Rge6 {[%clk 00:23:42]} {[%emt 00:00:41]} 27. Bxe4 {[%clk
00:15:43]} {[%emt 00:01:54]} Rxe4 {[%clk 00:24:05]} {[%emt 00:00:07]} 28. Rxe4
{[%clk 00:16:09]} {[%emt 00:00:03]} Rxe4 {[%clk 00:24:29]} {[%emt 00:00:07]} 29.
g3 {[%clk 00:16:00]} {[%emt 00:00:40]} Re2 {[%clk 00:24:35]} {[%emt 00:00:23]}
30. Rb1 {[%clk 00:16:25]} {[%emt 00:00:04]} Kc7 {[%clk 00:24:57]} {[%emt
00:00:09]} 31. Kf1 {[%clk 00:15:46]} {[%emt 00:01:09]} Rd2 {[%clk 00:25:09]}
{[%emt 00:00:18]} 32. h5 {[%clk 00:15:41]} {[%emt 00:00:36]} Rd5 {[%clk
00:25:01]} {[%emt 00:00:37]} 33. Re1 {[%clk 00:15:41]} {[%emt 00:00:30]} Kd7
{[%clk 00:25:18]} {[%emt 00:00:13]} 34. g4 {[%clk 00:16:00]} {[%emt 00:00:11]}
Rd4 {[%clk 00:25:37]} {[%emt 00:00:11]} 35. f3 {[%clk 00:16:16]} {[%emt
00:00:14]} f5 {[%clk 00:25:09]} {[%emt 00:00:57]} 36. gxf5 {[%clk 00:15:55]}
{[%emt 00:00:51]} Rh4 {[%clk 00:25:20]} {[%emt 00:00:20]} 37. f6 {[%clk
00:15:33]} {[%emt 00:00:53]} Rxh5 {[%clk 00:25:10]} {[%emt 00:00:40]} 38. Re7+
{[%clk 00:15:46]} {[%emt 00:00:15]} Kc6 {[%clk 00:25:34]} {[%emt 00:00:06]} 39.
f7 {[%clk 00:15:33]} {[%emt 00:00:43]} Rf5 {[%clk 00:25:44]} {[%emt 00:00:20]}
40. Kf2 {[%clk 00:15:28]} {[%emt 00:00:34]} a6 {[%clk 00:25:29]} {[%emt
00:00:47]} 41. Ke3 {[%clk 00:08:47]} {[%emt 00:07:11]} b5 {[%clk 00:25:34]}
{[%emt 00:00:26]} 42. Ke4 {[%clk 00:09:09]} {[%emt 00:00:07]} Kd6 {[%clk
00:06:18]} {[%emt 00:19:46]} 43. Ra7 {[%clk 00:09:05]} {[%emt 00:00:34]} 1-0

[Event "NJSK 2023 Jeugd B"]
[Site "Almelo, Netherlands"]
[Date "2023.05.06"]
[Round "7.1"]
[White "Smeets, Kobe"]
[Black "Kumar, Prajit Sai"]
[Result "1-0"]
[TimeControl "90min/40moves + 30min + 30sec/move"]
[WhiteElo "2094"]
[BlackElo "2228"]

1. e4 {[%clk 01:30:58]} {[%emt 00:00:02]} c5 {[%clk 01:30:57]} {[%emt
00:00:03]} 2. Nf3 {[%clk 01:31:22]} {[%emt 00:00:06]} Nc6 {[%clk 01:31:22]}
{[%emt 00:00:04]} 3. d4 {[%clk 01:31:45]} {[%emt 00:00:07]} cxd4 {[%clk
01:31:47]} {[%emt 00:00:05]} 4. Nxd4 {[%clk 01:32:11]} {[%emt 00:00:04]} e5
{[%clk 01:32:11]} {[%emt 00:00:06]} 5. Nb5 {[%clk 01:32:19]} {[%emt 00:00:23]}
d6 {[%clk 01:32:35]} {[%emt 00:00:06]} 6. N1c3 {[%clk 01:31:27]} {[%emt
00:01:22]} a6 {[%clk 01:32:57]} {[%emt 00:00:08]} 7. Na3 {[%clk 01:31:53]}
{[%emt 00:00:03]} Be6 {[%clk 01:33:22]} {[%emt 00:00:04]} 8. Nc4 {[%clk
01:32:19]} {[%emt 00:00:05]} Rb8 {[%clk 01:33:46]} {[%emt 00:00:06]} 9. a4
{[%clk 01:31:42]} {[%emt 00:01:07]} Nb4 {[%clk 01:31:32]} {[%emt 00:02:44]} 10.
Be2 {[%clk 00:58:38]} {[%emt 00:33:35]} Rc8 {[%clk 01:25:32]} {[%emt 00:06:29]}
11. Ne3 {[%clk 00:52:58]} {[%emt 00:06:10]} Nf6 {[%clk 01:24:20]} {[%emt
00:01:41]} 12. O-O {[%clk 00:52:49]} {[%emt 00:00:41]} Be7 {[%clk 01:20:11]}
{[%emt 00:04:38]} 13. Ncd5 {[%clk 00:46:59]} {[%emt 00:06:21]} Nbxd5 {[%clk
01:18:05]} {[%emt 00:02:35]} 14. exd5 {[%clk 00:47:05]} {[%emt 00:00:23]} Bd7
{[%clk 01:18:31]} {[%emt 00:00:05]} 15. c4 {[%clk 00:42:26]} {[%emt 00:05:10]}
a5 {[%clk 01:10:42]} {[%emt 00:08:18]} 16. b4 {[%clk 00:40:53]} {[%emt
00:02:02]} axb4 {[%clk 01:10:06]} {[%emt 00:01:07]} 17. Bd2 {[%clk 00:38:14]}
{[%emt 00:03:09]} O-O {[%clk 01:07:56]} {[%emt 00:02:39]} 18. Bxb4 {[%clk
00:38:30]} {[%emt 00:00:15]} Ne4 {[%clk 01:05:22]} {[%emt 00:03:04]} 19. Qb1
{[%clk 00:33:06]} {[%emt 00:05:53]} Nf6 {[%clk 00:58:22]} {[%emt 00:07:31]} 20.
a5 {[%clk 00:30:14]} {[%emt 00:03:22]} Qc7 {[%clk 00:54:54]} {[%emt 00:03:57]}
21. Qb3 {[%clk 00:29:20]} {[%emt 00:01:25]} Rb8 {[%clk 00:49:47]} {[%emt
00:05:36]} 22. Rfb1 {[%clk 00:28:38]} {[%emt 00:01:14]} Ne4 {[%clk 00:49:00]}
{[%emt 00:01:16]} 23. Bd3 {[%clk 00:20:31]} {[%emt 00:08:37]} f5 {[%clk
00:49:23]} {[%emt 00:00:07]} 24. Qc2 {[%clk 00:18:35]} {[%emt 00:02:26]} g6
{[%clk 00:45:22]} {[%emt 00:04:31]} 25. Bxe4 {[%clk 00:17:47]} {[%emt
00:01:18]} fxe4 {[%clk 00:45:47]} {[%emt 00:00:05]} 26. Qxe4 {[%clk 00:17:55]}
{[%emt 00:00:23]} Rf4 {[%clk 00:44:24]} {[%emt 00:01:52]} 27. Qc2 {[%clk
00:17:14]} {[%emt 00:01:11]} Rbf8 {[%clk 00:44:42]} {[%emt 00:00:12]} 28. Be1
{[%clk 00:16:43]} {[%emt 00:01:01]} Bc8 {[%clk 00:43:53]} {[%emt 00:01:19]} 29.
Rb6 {[%clk 00:14:41]} {[%emt 00:02:32]} R4f7 {[%clk 00:40:49]} {[%emt
00:03:34]} 30. Rab1 {[%clk 00:13:24]} {[%emt 00:01:46]} Bg5 {[%clk 00:40:24]}
{[%emt 00:00:55]} 31. R1b3 {[%clk 00:12:47]} {[%emt 00:01:08]} Qc5 {[%clk
00:38:37]} {[%emt 00:02:16]} 32. Qe2 {[%clk 00:07:09]} {[%emt 00:06:09]} Rf6
{[%clk 00:30:23]} {[%emt 00:08:44]} 33. Rd3 {[%clk 00:06:44]} {[%emt 00:00:54]}
e4 {[%clk 00:28:31]} {[%emt 00:02:23]} 34. Rdb3 {[%clk 00:06:31]} {[%emt
00:00:42]} R6f7 {[%clk 00:27:38]} {[%emt 00:01:24]} 35. Nd1 {[%clk 00:03:30]}
{[%emt 00:03:31]} h5 {[%clk 00:25:02]} {[%emt 00:03:06]} 36. Ne3 {[%clk
00:02:35]} {[%emt 00:01:25]} Qd4 {[%clk 00:23:38]} {[%emt 00:01:53]} 37. Rxd6
{[%clk 00:01:57]} {[%emt 00:01:09]} Kh7 {[%clk 00:24:06]} {[%emt 00:00:03]} 38.
Rdb6 {[%clk 00:01:22]} {[%emt 00:01:04]} Bh4 {[%clk 00:20:11]} {[%emt
00:04:25]} 39. g3 {[%clk 00:01:34]} {[%emt 00:00:18]} Bg5 {[%clk 00:19:16]}
{[%emt 00:01:25]} 40. h4 {[%clk 00:01:26]} {[%emt 00:00:38]} Bd8 {[%clk
00:18:35]} {[%emt 00:01:10]} 41. R6b5 {[%clk 00:21:57]} {[%emt 00:10:00]} Rf3
{[%clk 00:47:27]} {[%emt 00:01:38]} 42. Qb2 {[%clk 00:19:18]} {[%emt 00:03:09]}
Bf6 {[%clk 00:45:49]} {[%emt 00:02:07]} 43. Qxd4 {[%clk 00:18:56]} {[%emt
00:00:53]} Bxd4 {[%clk 00:46:12]} {[%emt 00:00:07]} 44. d6 {[%clk 00:17:45]}
{[%emt 00:01:41]} R8f7 {[%clk 00:46:03]} {[%emt 00:00:39]} 45. Rd5 {[%clk
00:16:53]} {[%emt 00:01:22]} Bxe3 {[%clk 00:45:55]} {[%emt 00:00:38]} 46. Rxe3
{[%clk 00:17:11]} {[%emt 00:00:12]} Rxe3 {[%clk 00:46:16]} {[%emt 00:00:09]} 47.
fxe3 {[%clk 00:17:34]} {[%emt 00:00:07]} Bh3 {[%clk 00:45:25]} {[%emt
00:01:21]} 48. Bc3 {[%clk 00:14:41]} {[%emt 00:03:23]} Bd7 {[%clk 00:44:04]}
{[%emt 00:01:51]} 49. Rc5 {[%clk 00:12:24]} {[%emt 00:02:46]} Bc6 {[%clk
00:44:26]} {[%emt 00:00:08]} 50. a6 {[%clk 00:12:20]} {[%emt 00:00:34]} Kg8
{[%clk 00:44:30]} {[%emt 00:00:26]} 51. a7 {[%clk 00:12:10]} {[%emt 00:00:41]}
Rf8 {[%clk 00:44:56]} {[%emt 00:00:04]} 52. Rxc6 {[%clk 00:12:31]} {[%emt
00:00:09]} bxc6 {[%clk 00:45:22]} {[%emt 00:00:04]} 53. d7 {[%clk 00:12:44]}
{[%emt 00:00:17]} Kf7 {[%clk 00:45:49]} {[%emt 00:00:03]} 54. Ba5 {[%clk
00:13:09]} {[%emt 00:00:05]} 1-0